fUST/lending_fUST_20241221
["ID","MTS","AMOUNT","RATE_DAILY","PERIOD"]
[346181206,1734766249406,-500.0,0.00019178,2]
[346181208,1734766249416,-226.184767,0.00019178,2]
[346181210,1734766249427,-593.3877008,0.00019178,2]
[346181212,1734766249436,-226.184767,0.00019178,2]
[346181215,1734766249446,-947.44,0.00019178,2]
[346181216,1734766249459,-226.184767,0.00019178,2]
[346181219,1734766249470,-226.184767,0.00019178,2]
[346181221,1734766249480,-500.0,0.00019178,2]
[346181222,1734766249490,-7295.97,0.00019178,2]
[346181225,1734766249500,-226.184767,0.00019178,2]
[346181226,1734766249509,-226.184772,0.00019178,2]
[346181228,1734766249519,-902.13,0.00019178,2]
[346181230,1734766249529,-500.0,0.00019178,2]
[346181232,1734766249539,-500.0,0.00019178,2]
[346181234,1734766249549,-500.0,0.00019178,2]
[346181236,1734766249559,-500.0,0.00019178,2]
[346181238,1734766249568,-500.0,0.00019178,2]
[346181240,1734766249578,-500.0,0.00019178,2]
[346181242,1734766249587,-1655.77,0.00019178,2]
[346181244,1734766249596,-500.0,0.00019178,2]
[346181246,1734766249606,-500.0,0.00019178,2]
[346181248,1734766249615,-960.44,0.00019178,2]
[346181251,1734766249625,-500.0,0.00019178,2]
[346181252,1734766249634,-500.0,0.00019178,2]
[346181254,1734766249644,-500.0,0.00019178,2]
[346181257,1734766249653,-500.0,0.00019178,2]
[346181259,1734766249662,-500.0,0.00019178,2]
[346181261,1734766249672,-500.0,0.00019178,2]
[346181263,1734766249681,-500.0,0.00019178,2]
[346181265,1734766249690,-500.0,0.00019178,2]
[346181266,1734766249698,-500.0,0.00019178,2]
[346181268,1734766249709,-500.0,0.00019178,2]
[346181270,1734766249718,-500.0,0.00019178,2]
[346181272,1734766249730,-500.0,0.00019178,2]
[346181274,1734766249739,-500.0,0.00019178,2]
[346181277,1734766249748,-603.19342979,0.00019178,2]
[346181279,1734766249758,-151.0,0.00019178,2]
[346181281,1734766249767,-151.0,0.00019178,2]
[346181283,1734766249777,-151.0,0.00019178,2]
[346181285,1734766249787,-151.0,0.00019178,2]
[346181287,1734766249796,-500.0,0.00019178,2]
[346181289,1734766249805,-151.0,0.00019178,2]
[346181291,1734766249814,-1151.66,0.00019178,2]
[346181293,1734766249823,-551.9,0.00019178,2]
[346181295,1734766249833,-151.0,0.00019178,2]
[346181297,1734766249843,-151.0,0.00019178,2]
[346181299,1734766249853,-500.0,0.00019178,2]
[346181301,1734766249862,-151.0,0.00019178,2]
[346181303,1734766249871,-151.0,0.00019178,2]
[346181305,1734766249880,-151.0,0.00019178,2]
[346181306,1734766249890,-151.0,0.00019178,2]
[346181307,1734766249899,-151.0,0.00019178,2]
[346181308,1734766249909,-151.0,0.00019178,2]
[346181309,1734766249919,-151.0,0.00019178,2]
[346181310,1734766249928,-151.0,0.00019178,2]
[346181311,1734766249938,-151.0,0.00019178,2]
[346181312,1734766249950,-500.0,0.00019178,2]
[346181313,1734766249963,-151.0,0.00019178,2]
[346181314,1734766249973,-151.0,0.00019178,2]
[346181315,1734766249983,-239.563296,0.00019178,2]
[346181316,1734766249993,-500.0,0.00019178,2]
[346181317,1734766250003,-917.4,0.00019178,2]
[346181318,1734766250014,-500.0,0.00019178,2]
[346181319,1734766250025,-3037.48,0.00019178,2]
[346181320,1734766250036,-1814.78,0.00019178,2]
[346181321,1734766250045,-500.0,0.00019178,2]
[346181322,1734766250055,-1912.69,0.00019178,2]
[346181324,1734766250065,-505.74173159,0.00019178,2]
[346181326,1734766250074,-717.36,0.00019178,2]
[346181328,1734766250083,-500.0,0.00019178,2]
[346181330,1734766250093,-507.01,0.00019178,2]
[346181332,1734766250103,-500.0,0.00019178,2]
[346181334,1734766250112,-500.0,0.00019178,2]
[346181354,1734766250302,-500.0,0.00019178,2]
[346181356,1734766250313,-3189.61,0.00019178,2]
[346181358,1734766250324,-500.0,0.00019178,2]
[346181360,1734766250333,-551.41,0.00019178,2]
[346181363,1734766250343,-500.0,0.00019178,2]
[346181365,1734766250352,-500.0,0.00019178,2]
[346181366,1734766250361,-500.0,0.00019178,2]
[346181368,1734766250371,-562.01,0.00019178,2]
[346181370,1734766250380,-896.28,0.00019178,2]
[346181372,1734766250389,-500.0,0.00019178,2]
[346181374,1734766250399,-1362.02,0.00019178,2]
[346181376,1734766250408,-3466.76,0.00019178,2]
[346181378,1734766250418,-500.0,0.00019178,2]
[346181380,1734766250427,-100946.24,0.00019178,2]
[346181382,1734766250436,-500.0,0.00019178,2]
[346181384,1734766250446,-500.0,0.00019178,2]
[346181386,1734766250456,-886.7,0.00019178,2]
[346181388,1734766250467,-3104.52,0.00019178,2]
[346181390,1734766250476,-500.0,0.00019178,2]
[346181392,1734766250486,-561.76,0.00019178,2]
[346181394,1734766250497,-573.50295927,0.00019178,2]
[346181396,1734766250506,-945.68,0.00019178,2]
[346181398,1734766250516,-500.0,0.00019178,2]
[346181400,1734766250525,-500.0,0.00019178,2]
[346181402,1734766250535,-502.37143778,0.00019178,2]
[346181404,1734766250544,-8375.85,0.00019178,2]
[346181406,1734766250553,-2624.38,0.00019178,2]
[346181408,1734766250563,-500.0,0.00019178,2]
[346181410,1734766250572,-29212.72,0.00019178,2]
[346181412,1734766250581,-527.24,0.00019178,2]
[346181414,1734766250591,-500.90321993,0.00019178,2]
[346181416,1734766250599,-151.0,0.00019178,2]
[346181418,1734766250609,-535.73,0.00019178,2]
[346181420,1734766250618,-1103.22,0.00019178,2]
[346181422,1734766250627,-17385.52,0.00019178,2]
[346181424,1734766250636,-541.41,0.00019178,2]
[346181426,1734766250645,-3813.94,0.00019178,2]
[346181428,1734766250654,-500.0,0.00019178,2]
[346181430,1734766250664,-500.0,0.00019178,2]
[346181432,1734766250673,-1344.44,0.00019178,2]
[346181434,1734766250682,-508.31,0.00019178,2]
[346181436,1734766250691,-646.8,0.00019178,2]
[346181438,1734766250700,-510.68,0.00019178,2]
[346181440,1734766250712,-500.0,0.00019178,2]
[346181442,1734766250721,-500.0,0.00019178,2]
[346181444,1734766250730,-500.0,0.00019178,2]
[346181446,1734766250739,-3660.71,0.00019178,2]
[346181448,1734766250750,-26783.63,0.00019178,2]
[346181450,1734766250759,-500.0,0.00019178,2]
[346181452,1734766250768,-500.0,0.00019178,2]
[346181454,1734766250777,-852.33,0.00019178,2]
[346181456,1734766250787,-4384.63,0.00019178,2]
[346181458,1734766250796,-535.69,0.00019178,2]
[346181460,1734766250805,-500.0,0.00019178,2]
[346181463,1734766250815,-13853.89,0.00019178,2]
[346181465,1734766250824,-500.0,0.00019178,2]
[346181467,1734766250833,-500.0,0.00019178,2]
[346181469,1734766250842,-1941.4,0.00019178,2]
[346181471,1734766250851,-500.0,0.00019178,2]
[346181473,1734766250860,-2467.21,0.00019178,2]
[346181475,1734766250869,-500.0,0.00019178,2]
[346181477,1734766250879,-500.0,0.00019178,2]
[346181479,1734766250888,-500.0,0.00019178,2]
[346181481,1734766250897,-997.65,0.00019178,2]
[346181483,1734766250906,-5451.15,0.00019178,2]
[346181485,1734766250916,-5451.15,0.00019178,2]
[346181486,1734766250925,-5451.15,0.00019178,2]
[346181489,1734766250935,-5451.15,0.00019178,2]
[346181491,1734766250945,-5451.15,0.00019178,2]
[346181492,1734766250956,-500.0,0.00019178,2]
[346181494,1734766250966,-5451.15,0.00019178,2]
[346181496,1734766250975,-5451.15,0.00019178,2]
[346181499,1734766250985,-5451.15,0.00019178,2]
[346181501,1734766250995,-5451.15,0.00019178,2]
[346181502,1734766251004,-5451.15,0.00019178,2]
[346181504,1734766251013,-5451.15,0.00019178,2]
[346181507,1734766251024,-5451.15,0.00019178,2]
[346181508,1734766251034,-5451.15,0.00019178,2]
[346181511,1734766251043,-5451.15,0.00019178,2]
[346181512,1734766251053,-500.0,0.00019178,2]
[346181514,1734766251062,-5451.15,0.00019178,2]
[346181516,1734766251071,-5451.15,0.00019178,2]
[346181519,1734766251080,-500.0,0.00019178,2]
[346181521,1734766251089,-5451.15,0.00019178,2]
[346181523,1734766251099,-5451.15,0.00019178,2]
[346181525,1734766251108,-500.0,0.00019178,2]
[346181527,1734766251117,-5451.15,0.00019178,2]
[346181529,1734766251127,-500.0,0.00019178,2]
[346181531,1734766251136,-5451.15,0.00019178,2]
[346181533,1734766251145,-5451.15,0.00019178,2]
[346181535,1734766251156,-5451.15,0.00019178,2]
[346181537,1734766251165,-5451.15,0.00019178,2]
[346181539,1734766251174,-5451.15113015,0.00019178,2]
[346181541,1734766251184,-500.0,0.00019178,2]
[346181543,1734766251193,-500.0,0.00019178,2]
[346181545,1734766251203,-500.0,0.00019178,2]
[346181547,1734766251218,-500.0,0.00019178,2]
[346181548,1734766251227,-500.0,0.00019178,2]
[346181550,1734766251236,-500.0,0.00019178,2]
[346181553,1734766251245,-4150.71,0.00019178,2]
[346181555,1734766251255,-1357.37,0.00019178,2]
[346181557,1734766251264,-500.0,0.00019178,2]
[346181559,1734766251274,-500.0,0.00019178,2]
[346181561,1734766251283,-637.02,0.00019178,2]
[346181562,1734766251292,-849.58,0.00019178,2]
[346181564,1734766251302,-500.0,0.00019178,2]
[346181566,1734766251311,-1012.45,0.00019178,2]
[346181568,1734766251321,-500.0,0.00019178,2]
[346181570,1734766251330,-500.0,0.00019178,2]
[346181572,1734766251339,-500.0,0.00019178,2]
[346181574,1734766251348,-500.0,0.00019178,2]
[346181576,1734766251358,-629.03,0.00019178,2]
[346181578,1734766251367,-500.0,0.00019178,2]
[346181580,1734766251376,-650.1,0.00019178,2]
[346181582,1734766251385,-500.0,0.00019178,2]
[346181584,1734766251394,-1492.05,0.00019178,2]
[346181586,1734766251404,-2360.27,0.00019178,2]
[346181588,1734766251413,-500.0,0.00019178,2]
[346181590,1734766251422,-500.0,0.00019178,2]
[346181592,1734766251432,-755.8,0.00019178,2]
[346181594,1734766251442,-607.6,0.00019178,2]
[346181597,1734766251451,-500.0,0.00019178,2]
[346181598,1734766251461,-500.0,0.00019178,2]
[346181600,1734766251471,-500.0,0.00019178,2]
[346181602,1734766251480,-500.0,0.00019178,2]
[346181605,1734766251489,-500.0,0.00019178,2]
[346181607,1734766251500,-500.0,0.00019178,2]
[346181609,1734766251510,-500.0,0.00019178,2]
[346181610,1734766251519,-1601.35,0.00019178,2]
[346181612,1734766251529,-500.9422657,0.00019178,2]
[346181615,1734766251538,-500.0,0.00019178,2]
[346181617,1734766251547,-7813.26,0.00019178,2]
[346181619,1734766251557,-500.0,0.00019178,2]
[346181620,1734766251566,-604.61,0.00019178,2]
[346181623,1734766251576,-500.0,0.00019178,2]
[346181624,1734766251586,-500.0,0.00019178,2]
[346181626,1734766251595,-500.0,0.00019178,2]
[346181628,1734766251604,-645.61,0.00019178,2]
[346181630,1734766251613,-5541.8,0.00019178,2]
[346181632,1734766251622,-500.0,0.00019178,2]
[346181634,1734766251631,-500.0,0.00019178,2]
[346181636,1734766251640,-500.0,0.00019178,2]
[346181638,1734766251649,-500.0,0.00019178,2]
[346181640,1734766251658,-929.56,0.00019178,2]
[346181642,1734766251667,-500.0,0.00019178,2]
[346181644,1734766251677,-1076.03,0.00019178,2]
[346181646,1734766251686,-500.0,0.00019178,2]
[346181648,1734766251695,-502.08297841,0.00019178,2]
[346181650,1734766251704,-500.0,0.00019178,2]
[346181652,1734766251714,-744.77,0.00019178,2]
[346181654,1734766251723,-168.58954871,0.00019178,2]
[346181656,1734766251733,-150.68039839,0.00019178,2]
[346181658,1734766251742,-2007.25,0.00019178,2]
[346181660,1734766251752,-500.0,0.00019178,2]
[346181662,1734766251760,-500.0,0.00019178,2]
[346181664,1734766251770,-866.48,0.00019178,2]
[346181666,1734766251779,-500.0,0.00019178,2]
[346181668,1734766251789,-540.81,0.00019178,2]
[346181670,1734766251798,-789.05,0.00019178,2]
[346181672,1734766251807,-233.36828388,0.00019178,2]
[346181674,1734766251816,-500.0,0.00019178,2]
[346181676,1734766251826,-500.0,0.00019178,2]
[346181678,1734766251835,-500.0,0.00019178,2]
[346181680,1734766251844,-1308.2,0.00019178,2]
[346181681,1734766251853,-3205.29,0.00019178,2]
[346181684,1734766251863,-380.49621791,0.00019178,2]
[346181685,1734766251872,-500.0,0.00019178,2]
[346181687,1734766251882,-500.0,0.00019178,2]
[346181689,1734766251891,-500.0,0.00019178,2]
[346181691,1734766251900,-8477.26,0.00019178,2]
[346181693,1734766251909,-500.0,0.00019178,2]
[346181695,1734766251919,-500.0,0.00019178,2]
[346181697,1734766251928,-2047.5,0.00019178,2]
[346181699,1734766251941,-1270.78,0.00019178,2]
[346181702,1734766251950,-657.94,0.00019178,2]
[346181704,1734766251960,-500.0,0.00019178,2]
[346181706,1734766251970,-500.0,0.00019178,2]
[346181708,1734766251979,-500.0,0.00019178,2]
[346181710,1734766251988,-1938.86,0.00019178,2]
[346181711,1734766251998,-500.0,0.00019178,2]
[346181714,1734766252007,-5730.57,0.00019178,2]
[346181715,1734766252016,-7586.07,0.00019178,2]
[346181718,1734766252027,-527.3,0.00019178,2]
[346181720,1734766252037,-504.89202936,0.00019178,2]
[346181722,1734766252046,-500.0,0.00019178,2]
[346181724,1734766252055,-2009.69,0.00019178,2]
[346181725,1734766252063,-500.0,0.00019178,2]
[346181727,1734766252073,-500.0,0.00019178,2]
[346181729,1734766252082,-500.0,0.00019178,2]
[346181732,1734766252091,-500.0,0.00019178,2]
[346181733,1734766252100,-500.0,0.00019178,2]
[346181735,1734766252110,-500.0,0.00019178,2]
[346181737,1734766252119,-500.0,0.00019178,2]
[346181739,1734766252129,-500.0,0.00019178,2]
[346181741,1734766252138,-500.0,0.00019178,2]
[346181743,1734766252147,-4118.07,0.00019178,2]
[346181745,1734766252156,-500.0,0.00019178,2]
[346181747,1734766252166,-500.0,0.00019178,2]
[346181749,1734766252174,-500.0,0.00019178,2]
[346181751,1734766252183,-502.27684794,0.00019178,2]
[346181753,1734766252193,-500.0,0.00019178,2]
[346181755,1734766252202,-2792.66,0.00019178,2]
[346181757,1734766252216,-500.0,0.00019178,2]
[346181759,1734766252226,-2997.31,0.00019178,2]
[346181761,1734766252236,-500.0,0.00019178,2]
[346181763,1734766252245,-500.0,0.00019178,2]
[346181765,1734766252254,-500.0,0.00019178,2]
[346181767,1734766252262,-1508.98,0.00019178,2]
[346181769,1734766252272,-1374.38,0.00019178,2]
[346181771,1734766252281,-1022.14,0.00019178,2]
[346181773,1734766252290,-501.43698527,0.00019178,2]
[346181775,1734766252300,-500.0,0.00019178,2]
[346181777,1734766252309,-500.0,0.00019178,2]
[346181779,1734766252318,-500.0,0.00019178,2]
[346181781,1734766252327,-501.43022538,0.00019178,2]
[346181783,1734766252336,-2151.62,0.00019178,2]
[346181785,1734766252345,-500.0,0.00019178,2]
[346181787,1734766252355,-720.84,0.00019178,2]
[346181789,1734766252364,-3494.71,0.00019178,2]
[346181791,1734766252373,-1266.14,0.00019178,2]
[346181792,1734766252382,-500.0,0.00019178,2]
[346181793,1734766252392,-500.0,0.00019178,2]
[346181794,1734766252401,-500.0,0.00019178,2]
[346181795,1734766252410,-500.0,0.00019178,2]
[346181796,1734766252418,-165.52338352,0.00019178,2]
[346181797,1734766252428,-570.24,0.00019178,2]
[346181798,1734766252436,-500.0,0.00019178,2]
[346181800,1734766252445,-500.0,0.00019178,2]
[346181802,1734766252456,-500.0,0.00019178,2]
[346181804,1734766252465,-500.0,0.00019178,2]
[346181806,1734766252474,-164.204051,0.00019178,2]
[346181808,1734766252484,-24650.2778316,0.00019178,11]
[346181810,1734766252493,-6089.9161912,0.00019252,2]
[346181812,1734766252502,-467.04440721,0.00019329,2]
[346181814,1734766252511,-534.0,0.00019343,2]
[346181816,1734766252520,-2138.0,0.00019343,2]
[346181818,1734766252529,-2362.0,0.00019343,2]
[346181820,1734766252538,-18186.445,0.00019343,2]
[346181822,1734766252547,-500.0,0.00019452,2]
[346181824,1734766252556,-500.0,0.00019452,2]
[346181826,1734766252566,-153.24427234,0.00019452,2]
[346181828,1734766252574,-155.73411057,0.00019452,2]
[346181830,1734766252584,-500.0,0.00019452,2]
[346181832,1734766252593,-500.0,0.00019452,2]
[346181834,1734766252603,-150.2101309,0.00019452,2]
[346181836,1734766252612,-152.09029021,0.00019452,2]
[346181838,1734766252622,-509.12,0.00019452,2]
[346181840,1734766252632,-500.0,0.00019452,2]
[346181842,1734766252642,-500.0,0.00019452,2]
[346181844,1734766252651,-501.45271118,0.00019452,2]
[346181846,1734766252660,-501.29450172,0.00019452,2]
[346181848,1734766252672,-558.98150944,0.00019452,2]
[346181850,1734766252683,-502.00869866,0.00019452,2]
[346181852,1734766252692,-242.81970484,0.00019452,2]
[346181869,1734766252834,-501.2697223,0.00019452,2]
[346181871,1734766252844,-500.0,0.00019452,2]
[346181873,1734766252854,-192.63204232,0.00019452,2]
[346181875,1734766252863,-500.0,0.00019452,2]
[346181877,1734766252873,-500.0,0.00019452,2]
[346181879,1734766252883,-503.45182854,0.00019452,2]
[346181881,1734766252892,-500.0,0.00019452,2]
[346181883,1734766252901,-500.0,0.00019452,2]
[346181885,1734766252910,-500.0,0.00019452,2]
[346181887,1734766252919,-500.0,0.00019452,2]
[346181889,1734766252929,-503.95018346,0.00019452,2]
[346181891,1734766252939,-500.0,0.00019452,2]
[346181893,1734766252952,-500.0,0.00019452,2]
[346181895,1734766252962,-500.0,0.00019452,2]
[346181897,1734766252971,-500.0,0.00019452,2]
[346181899,1734766252980,-404.40215862,0.00019452,2]
[346181901,1734766252991,-500.0,0.00019452,2]
[346181903,1734766253000,-500.0,0.00019452,2]
[346181905,1734766253009,-500.0,0.00019452,2]
[346181907,1734766253019,-500.0,0.00019452,2]
[346181909,1734766253028,-500.0,0.00019452,2]
[346181911,1734766253037,-500.0,0.00019452,2]
[346181913,1734766253047,-500.0,0.00019452,2]
[346181915,1734766253056,-500.0,0.00019452,2]
[346181917,1734766253065,-758.11,0.00019452,2]
[346181919,1734766253075,-500.0,0.00019452,2]
[346181921,1734766253084,-500.0,0.00019452,2]
[346181923,1734766253094,-500.0,0.00019452,2]
[346181925,1734766253103,-500.0,0.00019452,2]
[346181927,1734766253113,-500.0,0.00019452,2]
[346181929,1734766253123,-500.0,0.00019452,2]
[346181931,1734766253132,-500.0,0.00019452,2]
[346181934,1734766253141,-500.0,0.00019452,2]
[346181936,1734766253151,-500.0,0.00019452,2]
[346181938,1734766253161,-500.0,0.00019452,2]
[346181940,1734766253171,-500.0,0.00019452,2]
[346181942,1734766253180,-500.0,0.00019452,2]
[346181944,1734766253190,-500.0,0.00019452,2]
[346181946,1734766253199,-500.0,0.00019452,2]
[346181948,1734766253209,-500.0,0.00019452,2]
[346181950,1734766253222,-500.0,0.00019452,2]
[346181952,1734766253232,-278.24677884,0.00019452,2]
[346181954,1734766253241,-500.0,0.00019452,2]
[346181956,1734766253250,-500.0,0.00019452,2]
[346181958,1734766253259,-200.0,0.00019452,2]
[346181960,1734766253269,-500.0,0.00019452,2]
[346181962,1734766253278,-500.0,0.00019452,2]
[346181964,1734766253287,-500.0,0.00019452,2]
[346181966,1734766253296,-500.0,0.00019452,2]
[346181968,1734766253305,-500.0,0.00019452,2]
[346181970,1734766253315,-523.62221123,0.00019452,2]
[346181972,1734766253324,-500.0,0.00019452,2]
[346181974,1734766253334,-500.0,0.00019452,2]
[346181976,1734766253343,-500.0,0.00019452,2]
[346181978,1734766253353,-500.0,0.00019452,2]
[346181980,1734766253362,-180.06713024,0.00019452,2]
[346181982,1734766253372,-500.0,0.00019452,2]
[346181984,1734766253381,-500.0,0.00019452,2]
[346181986,1734766253391,-580.16,0.00019452,2]
[346181988,1734766253400,-555.79395657,0.00019452,2]
[346181990,1734766253409,-508.02018226,0.00019452,2]
[346181992,1734766253419,-500.0,0.00019452,2]
[346181994,1734766253428,-500.0,0.00019452,2]
[346181996,1734766253438,-500.0,0.00019452,2]
[346181998,1734766253447,-500.0,0.00019452,2]
[346182000,1734766253459,-500.0,0.00019452,2]
[346182002,1734766253468,-362.05169383,0.00019452,2]
[346182004,1734766253478,-500.0,0.00019452,2]
[346182006,1734766253487,-500.0,0.00019452,2]
[346182008,1734766253496,-500.0,0.00019452,2]
[346182010,1734766253506,-500.0,0.00019452,2]
[346182012,1734766253516,-1330.57,0.00019452,2]
[346182014,1734766253526,-500.0,0.00019452,2]
[346182016,1734766253536,-500.0,0.00019452,2]
[346182018,1734766253558,-500.0,0.00019452,2]
[346182020,1734766253577,-500.0,0.00019452,2]
[346182022,1734766253586,-500.0,0.00019452,2]
[346182024,1734766253596,-500.0,0.00019452,2]
[346182026,1734766253606,-500.0,0.00019452,2]
[346182029,1734766253616,-500.0,0.00019452,2]
[346182031,1734766253627,-500.0,0.00019452,2]
[346182033,1734766253637,-500.0,0.00019452,2]
[346182035,1734766253649,-500.0,0.00019452,2]
[346182037,1734766253666,-232.21928726,0.00019452,2]
[346182039,1734766253684,-500.0,0.00019452,2]
[346182041,1734766253694,-500.0,0.00019452,2]
[346182043,1734766253703,-500.0,0.00019452,2]
[346182045,1734766253714,-500.0,0.00019452,2]
[346182047,1734766253723,-502.69489065,0.00019452,2]
[346182049,1734766253732,-735.61,0.00019452,2]
[346182050,1734766253742,-500.0,0.00019452,2]
[346182052,1734766253752,-500.0,0.00019452,2]
[346182055,1734766253764,-500.0,0.00019452,2]
[346182056,1734766253774,-500.0,0.00019452,2]
[346182059,1734766253785,-579.22,0.00019452,2]
[346182061,1734766253795,-155.2623622,0.00019452,2]
[346182062,1734766253804,-500.0,0.00019452,2]
[346182065,1734766253815,-500.0,0.00019452,2]
[346182067,1734766253825,-500.0,0.00019452,2]
[346182069,1734766253835,-1419.0,0.00019452,2]
[346182071,1734766253844,-500.0,0.00019452,2]
[346182073,1734766253854,-500.0,0.00019452,2]
[346182074,1734766253863,-642.02,0.00019452,2]
[346182077,1734766253874,-500.0,0.00019452,2]
[346182078,1734766253883,-500.0,0.00019452,2]
[346182080,1734766253893,-500.0,0.00019452,2]
[346182082,1734766253903,-653.51,0.00019452,2]
[346182084,1734766253912,-500.0,0.00019452,2]
[346182087,1734766253922,-503.05709755,0.00019452,2]
[346182089,1734766253931,-503.45301184,0.00019452,2]
[346182090,1734766253942,-500.0,0.00019452,2]
[346182093,1734766253954,-500.0,0.00019452,2]
[346182095,1734766253965,-500.0,0.00019452,2]
[346182097,1734766253975,-500.0,0.00019452,2]
[346182099,1734766253984,-500.0,0.00019452,2]
[346182101,1734766253995,-585.16,0.00019452,2]
[346182103,1734766254006,-500.0,0.00019452,2]
[346182105,1734766254015,-500.0,0.00019452,2]
[346182107,1734766254025,-500.0,0.00019452,2]
[346182109,1734766254035,-500.0,0.00019452,2]
[346182111,1734766254044,-502.09096987,0.00019452,2]
[346182113,1734766254054,-500.0,0.00019452,2]
[346182115,1734766254064,-500.0,0.00019452,2]
[346182117,1734766254073,-503.08,0.00019452,2]
[346182119,1734766254083,-500.0,0.00019452,2]
[346182121,1734766254092,-699.73,0.00019452,2]
[346182123,1734766254102,-500.0,0.00019452,2]
[346182125,1734766254111,-2086.42,0.00019452,2]
[346182126,1734766254121,-500.0,0.00019452,2]
[346182129,1734766254131,-630.87821133,0.00019452,2]
[346182131,1734766254140,-500.0,0.00019452,2]
[346182133,1734766254150,-500.0,0.00019452,2]
[346182134,1734766254159,-500.0,0.00019452,2]
[346182137,1734766254169,-500.0,0.00019452,2]
[346182138,1734766254181,-933.31,0.00019452,2]
[346182141,1734766254190,-500.0,0.00019452,2]
[346182143,1734766254200,-500.0,0.00019452,2]
[346182144,1734766254210,-500.0,0.00019452,2]
[346182146,1734766254220,-500.0,0.00019452,2]
[346182148,1734766254229,-500.0,0.00019452,2]
[346182151,1734766254238,-500.0,0.00019452,2]
[346182152,1734766254248,-752.44,0.00019452,2]
[346182155,1734766254257,-500.0,0.00019452,2]
[346182156,1734766254266,-500.0,0.00019452,2]
[346182159,1734766254276,-580.71,0.00019452,2]
[346182161,1734766254285,-3653.16,0.00019452,2]
[346182163,1734766254294,-500.0,0.00019452,2]
[346182165,1734766254303,-715.96,0.00019452,2]
[346182167,1734766254313,-1000.0,0.00019452,2]
[346182169,1734766254322,-548.78,0.00019452,2]
[346182171,1734766254331,-502.0982632,0.00019452,2]
[346182173,1734766254340,-503.48167427,0.00019452,2]
[346182175,1734766254350,-500.0,0.00019452,2]
[346182177,1734766254360,-500.0,0.00019452,2]
[346182179,1734766254369,-500.0,0.00019452,2]
[346182181,1734766254379,-500.0,0.00019452,2]
[346182183,1734766254388,-1057.72,0.00019452,2]
[346182185,1734766254397,-500.0,0.00019452,2]
[346182187,1734766254405,-500.0,0.00019452,2]
[346182189,1734766254414,-500.0,0.00019452,2]
[346182191,1734766254423,-501.11294032,0.00019452,2]
[346182193,1734766254433,-243.85905108,0.00019452,2]
[346182195,1734766254441,-500.0,0.00019452,2]
[346182197,1734766254451,-972.1,0.00019452,2]
[346182199,1734766254461,-500.0,0.00019452,2]
[346182201,1734766254470,-500.0,0.00019452,2]
[346182203,1734766254479,-1846.47,0.00019452,2]
[346182205,1734766254489,-500.0,0.00019452,2]
[346182207,1734766254499,-500.0,0.00019452,2]
[346182209,1734766254509,-569.64932504,0.00019452,2]
[346182211,1734766254518,-500.0,0.00019452,2]
[346182213,1734766254527,-705.88,0.00019452,2]
[346182215,1734766254536,-500.0,0.00019452,2]